fUST/lending_fUST_20240101
["ID","MTS","AMOUNT","RATE_DAILY","PERIOD"]
[309777505,1704112236349,-500.0,0.00042739,7]
[309777506,1704112236359,-500.0,0.00042739,7]
[309777507,1704112236368,-510.19394499,0.00042739,7]
[309777508,1704112236378,-500.0,0.00042739,7]
[309777509,1704112236387,-1.75346871,0.00042739,7]
[309777566,1704112238652,-6937.0986061,0.00020681,2]
[309777568,1704112238665,-991.21137324,0.00020681,2]
[309777570,1704112238674,-276.06536272,0.00020681,2]
[309777855,1704112241620,-431.52052911,0.00020681,2]
[309777857,1704112241630,-264.3616191,0.00020681,2]
[309777859,1704112241641,-347.83834139,0.00020681,2]
[309777863,1704112241664,-2455.41478177,0.00020681,2]
[309777864,1704112241673,-519.77193151,0.00042739,7]
[309777867,1704112241683,-507.34558719,0.00042739,7]
[309777868,1704112241692,-207.00537379,0.00042739,7]
[309777870,1704112241702,-507.40919592,0.00042739,7]
[309777872,1704112241711,-506.36836121,0.00042739,7]
[309777874,1704112241720,-307.04005162,0.00042739,7]
[309777876,1704112241729,-506.81595648,0.00042739,7]
[309777878,1704112241739,-500.0,0.00042739,7]
[309777880,1704112241748,-500.0,0.00042739,7]
[309777882,1704112241757,-500.0,0.00042739,7]
[309777884,1704112241766,-500.0,0.00042739,7]
[309777886,1704112241775,-500.0,0.00042739,7]
[309777888,1704112241784,-305.32574229,0.00042739,7]
[309777890,1704112241793,-500.0,0.00042739,7]
[309777892,1704112241802,-625.2,0.00042739,7]
[309777894,1704112241811,-500.0,0.00042739,7]
[309777896,1704112241820,-405.18761389,0.00042739,7]
[309777899,1704112241836,-220.01238611,0.00042739,7]
[309777901,1704112241846,-500.0,0.00042739,7]
[309777903,1704112241855,-625.2,0.00042739,7]
[309777905,1704112241864,-500.0,0.00042739,7]
[309777907,1704112241874,-625.2,0.00042739,7]
[309777909,1704112241883,-500.0,0.00042739,7]
[309777911,1704112241892,-625.2,0.00042739,7]
[309777913,1704112241901,-555.06854238,0.00042739,7]
[309777915,1704112241910,-625.2,0.00042739,7]
[309777917,1704112241920,-625.2,0.00042739,7]
[309777919,1704112241930,-625.2,0.00042739,7]
[309777921,1704112241939,-625.2,0.00042739,7]
[309777923,1704112241948,-625.2,0.00042739,7]
[309777925,1704112241958,-625.2,0.00042739,7]
[309777927,1704112241967,-625.2,0.00042739,7]
[309777929,1704112241976,-625.2,0.00042739,7]
[309777931,1704112241985,-150.06375581,0.00042739,7]
[309777933,1704112242001,-475.13624419,0.00042739,7]
[309777935,1704112242011,-625.2,0.00042739,7]
[309777937,1704112242020,-625.2,0.00042739,7]
[309777939,1704112242030,-625.2,0.00042739,7]
[309777941,1704112242039,-625.2,0.00042739,7]
[309777943,1704112242048,-625.2,0.00042739,7]
[309777945,1704112242057,-625.2,0.00042739,7]
[309777947,1704112242066,-625.2,0.00042739,7]
[309777949,1704112242075,-625.2,0.00042739,7]
[309777951,1704112242085,-625.2,0.00042739,7]
[309777953,1704112242094,-625.4,0.00042739,7]
[309777955,1704112242103,-500.0,0.00042739,7]
[309777957,1704112242112,-500.0,0.00042739,7]
[309777959,1704112242122,-500.0,0.00042739,7]
[309777961,1704112242132,-500.0,0.00042739,7]
[309777963,1704112242142,-500.0,0.00042739,7]
[309777965,1704112242151,-1528.35,0.00042739,7]
[309777967,1704112242161,-1528.35,0.00042739,7]
[309777969,1704112242171,-1528.35,0.00042739,7]
[309777971,1704112242179,-1528.35,0.00042739,7]
[309777973,1704112242188,-1528.35,0.00042739,7]
[309777975,1704112242197,-1528.35,0.00042739,7]
[309777977,1704112242206,-1528.35,0.00042739,7]
[309777979,1704112242215,-1528.35,0.00042739,7]
[309777981,1704112242224,-1528.35,0.00042739,7]
[309777983,1704112242233,-1528.35,0.00042739,7]
[309777985,1704112242242,-1528.35,0.00042739,7]
[309777987,1704112242251,-216.77910398,0.00042739,7]
[309777990,1704112242267,-1311.57089602,0.00042739,7]
[309777992,1704112242277,-1528.35,0.00042739,7]
[309777993,1704112242289,-1528.35,0.00042739,7]
[309777995,1704112242298,-1528.35,0.00042739,7]
[309777997,1704112242307,-1528.35,0.00042739,7]
[309777999,1704112242317,-1528.35,0.00042739,7]
[309778001,1704112242326,-1528.35,0.00042739,7]
[309778003,1704112242335,-1528.35,0.00042739,7]
[309778005,1704112242344,-1528.35,0.00042739,7]
[309778007,1704112242352,-1528.35,0.00042739,7]
[309778009,1704112242362,-992.70585013,0.00042739,7]
[309778012,1704112242378,-535.64414987,0.00042739,7]
[309778014,1704112242388,-1528.35,0.00042739,7]
[309778016,1704112242397,-1528.52180278,0.00042739,7]
[309778017,1704112242407,-501.65665761,0.00042739,7]
[309778020,1704112242416,-505.79414247,0.00042739,7]
[309778021,1704112242425,-500.0,0.00042739,7]
[309778024,1704112242436,-500.0,0.00042739,7]
[309778025,1704112242446,-506.93190582,0.00042739,7]
[309778028,1704112242455,-500.0,0.00042739,7]
[309778029,1704112242465,-500.0,0.00042739,7]
[309778038,1704112242533,-500.0,0.00042739,7]
[309778040,1704112242542,-500.0,0.00042739,7]
[309778042,1704112242552,-500.0,0.00042739,7]
[309778044,1704112242560,-500.0,0.00042739,7]
[309778046,1704112242570,-500.0,0.00042739,7]
[309778048,1704112242582,-500.0,0.00042739,7]
[309778050,1704112242591,-500.0,0.00042739,7]
[309778052,1704112242602,-500.0,0.00042739,7]
[309778054,1704112242611,-500.0,0.00042739,7]
[309778056,1704112242620,-497.7232747,0.00042739,7]
[309778187,1704112246366,-213.04527803,0.00042737,4]
[309778188,1704112246375,-849.02914458,0.00042737,4]
[309778189,1704112246385,-2590.70958794,0.00042737,4]
[309778200,1704113041673,24900.0,0.00019559,2]
[309778201,1704113111760,183.3809269,0.00020445,2]
[309778202,1704113136093,186289.93735932,0.00020445,2]
[309778203,1704113258626,851.81467386,0.00020521,2]
[309778204,1704113259125,253.03689703,0.00020521,2]
[309778205,1704113261331,593.46742734,0.00020521,2]
[309778206,1704113261945,1572.81659635,0.00020521,2]
[309778207,1704113264241,2803.25312316,0.00020521,2]
[309778208,1704113266327,360.01037887,0.00020521,2]
[309778209,1704113266355,2089.19910793,0.00020521,2]
[309778210,1704113266753,164.57325592,0.00020521,2]
[309778211,1704113267602,154.84515485,0.00020521,2]
[309778212,1704113268022,154.84515485,0.00020521,2]
[309778213,1704113269875,15178.7193092,0.00020521,2]
[309778214,1704113270197,176.21297277,0.00020521,2]
[309778216,1704113272463,552.93023041,0.00020521,2]
[309778217,1704113274243,187.528357,0.00019527,2]
[309778218,1704113275725,19622.64196242,0.00020521,2]
[309778219,1704113276832,5942.09361641,0.00020521,2]
[309778220,1704113278128,160.63706452,0.00020521,2]
[309778221,1704113282329,873.27865021,0.00020521,2]
[309778222,1704113282469,14213.77123395,0.00020521,2]
[309778223,1704113284899,399.15407367,0.00020521,2]
[309778224,1704113285956,2702.82461258,0.00020521,2]
[309778225,1704113286491,1018.88153191,0.00020521,2]
[309778226,1704113287838,154.84515485,0.00020521,2]
[309778227,1704113289585,4778.86931745,0.00020521,2]
[309778228,1704113290595,26366.26316002,0.00020521,2]
[309778229,1704113291375,413.28652308,0.00020521,2]
[309778232,1704113293530,230.0137314,0.00020521,2]
[309778233,1704113295077,328.6475025,0.00020521,2]
[309778234,1704113295670,641.65330945,0.00020521,2]
[309778235,1704113296539,154.84515485,0.00020521,2]
[309778236,1704113297116,164.62029128,0.00020521,2]
[309778237,1704113298044,2047.05701193,0.00020521,2]
[309778238,1704113298244,285.17267218,0.00020521,2]
[309778239,1704113301226,15849.01373132,0.00020521,2]
[309778240,1704113303662,293.82215808,0.0002052,2]
[309778241,1704113304024,154.84515485,0.0002052,2]
[309778244,1704113309033,321.76626595,0.00020521,2]
[309778245,1704113309170,1773.68924842,0.00020521,2]
[309778246,1704113311021,2630.41248819,0.00020521,2]
[309778247,1704113311068,916.23178014,0.00020521,2]
[309778248,1704113312865,3731.01777703,0.00020521,2]
[309778255,1704113367506,170.07739419,0.00020521,2]
[309778256,1704113378969,7928.30997934,0.00020521,2]
[309778257,1704113380184,585.77366444,0.00020521,2]
[309778289,1704113432697,-1677.73758043,0.00020679,2]
[309778290,1704113432707,-707.58589183,0.0002068,2]
[309778291,1704113432716,-154.84515485,0.0002068,2]
[309778292,1704113432725,-404.97657423,0.00020681,2]
[309778293,1704113432735,-183.38092689,0.00021818,2]
[309778294,1704113432744,-166.666666,0.00021918,2]
[309778295,1704113432753,-166.666666,0.00022431,2]
[309778297,1704113432762,-166.666666,0.00022944,2]
[309778299,1704113432771,-166.666666,0.00023456,2]
[309778301,1704113432780,-166.666666,0.00023969,2]
[309778302,1704113432789,-166.666666,0.00024482,2]
[309778303,1704113432798,-293.95399784,0.00025,2]
[309778304,1704113432806,-4326.9271577,0.00028848,2]
[309778305,1704113432824,-7983.61906236,0.00032999,4]
[309778306,1704113432836,-2674.06388022,0.00033999,4]
[309778307,1704113432846,-1000.0,0.00034959,7]
[309778308,1704113432858,-666.12182543,0.0003496,5]
[309778309,1704113432867,-227.95268331,0.00035341,2]
[309778310,1704113432877,-224.150371,0.00035616,120]
[309778311,1704113432886,-174.697569,0.00036273,2]
[309778312,1704113432896,-154.84515485,0.00037556,4]
[309778313,1704113432906,-862.10617392,0.00037556,4]
[309778314,1704113432916,-383.14946358,0.00037557,4]
[309778315,1704113432926,-21294.26029161,0.00037557,4]
[309778316,1704113432936,-3631.43422036,0.00037557,4]
[309778317,1704113432945,-536.29146175,0.00037557,4]
[309778318,1704113432955,-1173.31104635,0.00037557,4]
[309778319,1704113432964,-3766.3669601,0.00037558,4]
[309778320,1704113432974,-339.97279831,0.00037559,4]
[309778321,1704113432983,-236.75447398,0.00037559,4]
[309778322,1704113432993,-483.69916547,0.0003756,2]
[309778323,1704113433002,-2113.18928492,0.0003756,4]
[309778324,1704113433011,-215.82715003,0.0003756,4]
[309778325,1704113433020,-15865.85683718,0.0003756,4]
[309778326,1704113433034,-10498.53735417,0.0003756,4]
[309778327,1704113433043,-432.31552047,0.00037561,4]
[309778328,1704113433053,-154.84515485,0.00037561,4]
[309778329,1704113433062,-1231.0215856,0.00037561,4]
[309778330,1704113433071,-19097.19743525,0.00037561,4]
[309778331,1704113433081,-1377.08771524,0.00037562,2]
[309778332,1704113433090,-761.88926791,0.00037562,2]
[309778333,1704113433099,-20393.67277627,0.00038348,4]
[309778334,1704113433108,-3534.14345822,0.00038349,4]
[309778335,1704113433118,-797.36506553,0.00038349,4]
[309778336,1704113433128,-441.56094386,0.0003835,4]
[309778337,1704113433137,-2383.07576563,0.0003835,4]
[309778338,1704113433146,-154.84515485,0.00038351,4]
[309778339,1704113433155,-555.27939761,0.00038351,2]
[309778340,1704113433164,-394.77065385,0.00038351,4]
[309778341,1704113433173,-500.0,0.00038356,2]
[309778342,1704113433183,-5245.18070623,0.00038462,4]
[309778343,1704113433193,-370.0,0.00038685,2]
[309778344,1704113433203,-4910.31043611,0.00039987,4]
[309778345,1704113433212,-4029.10026796,0.0003999,4]
[309778346,1704113433222,-154.84515485,0.00039998,5]
[309778347,1704113433232,-2988.35569045,0.00039998,4]
[309778348,1704113433241,-263.81336373,0.00039998,4]
[309778349,1704113433251,-787.02795607,0.00039998,4]
[309778350,1704113433261,-675.42451354,0.00039999,4]
[309778351,1704113433270,-8389.05247382,0.00039999,2]
[309778352,1704113433281,-28805.75533153,0.0004,7]
[309778353,1704113433291,-910.08123496,0.0004059,4]
[309778354,1704113433301,-633.22435873,0.00040591,4]
[309778355,1704113433310,-1277.46612497,0.00040592,4]
[309778356,1704113433320,-1649.68210307,0.00040592,4]
[309778357,1704113433330,-196.87198904,0.00040593,4]
[309778358,1704113433339,-13665.60746403,0.00040594,4]
[309778359,1704113433349,-11369.58985732,0.00040595,4]
[309778360,1704113433359,-485.26691236,0.00040595,4]
[309778361,1704113433369,-864.54417187,0.00040595,4]
[309778362,1704113433378,-2478.47995042,0.00040598,2]
[309778363,1704113433389,-13639.11036057,0.000406,5]
[309778364,1704113433399,-5234.46955195,0.00040633,4]
[309778365,1704113433408,-677.30961529,0.00040635,4]
[309778366,1704113433418,-459.22961663,0.00040635,4]
[309778367,1704113433428,-3211.81306688,0.00040635,4]
[309778368,1704113433438,-4776.19127861,0.00040636,4]
[309778369,1704113433447,-244.98344306,0.00040636,4]
[309778370,1704113433457,-354.0224187,0.00040637,4]
[309778371,1704113433467,-597.61389837,0.00040637,4]
[309778429,1704113438818,-178.37917647,0.00025,2]
[309778431,1704113438827,-797.36506553,0.00037555,4]
[309778433,1704113438837,-2755.86334677,0.00037556,4]
[309778435,1704113438850,-453.22118573,0.00037556,4]
[309778438,1704113438866,-1984.26842325,0.00037556,4]
[309778440,1704113438877,-16627.20611365,0.00037556,4]
[309779006,1704113446618,-7837.02142655,0.00037556,4]
[309779007,1704113446630,-853.93149434,0.00037556,4]
[309779011,1704113582455,169.68033041,0.00020579,2]
[309779021,1704113662757,268.0796341,0.0001,2]
[309779022,1704113666284,1762.24003549,0.00021,2]
[309779040,1704113877726,3144.4570191,0.00019976,2]
[309779052,1704113914158,10261.41159533,0.00019976,2]
[309779053,1704113916647,3403.16488,0.00019965,2]
[309779055,1704113919363,1520.63978358,0.00019976,2]
[309779056,1704113920293,4410.31213089,0.00019976,2]
[309779057,1704113935257,1520.63978358,0.00019976,2]
[309779058,1704113936158,10261.41159533,0.00019976,2]
[309779060,1704113938304,2853.9755795,0.00019976,2]
[309779061,1704113951271,1520.63978358,0.00019976,2]
[309779062,1704113952267,10261.41159533,0.00019976,2]
[309779064,1704113969258,244.29441222,0.00019976,2]
[309779065,1704113974154,3525.83392229,0.00019976,2]
[309779069,1704114035264,5239.1056622,0.00019846,2]
[309779071,1704114048594,250.0,0.00019841,2]
[309779072,1704114063232,24900.0,0.00019833,2]
[309779076,1704114316093,209.95522,0.00019762,2]
[309779110,1704114564923,24900.0,0.00019662,2]
[309779184,1704114631925,-328.6475025,0.00020633,2]
[309779186,1704114631934,-399.15407367,0.00020633,2]
[309779188,1704114631943,-2702.82461258,0.00020633,2]
[309779190,1704114631952,-1237.40369246,0.00020633,2]
[309779192,1704114631961,-176.21297277,0.00020633,2]
[309779194,1704114631971,-223.5951374,0.00020634,2]
[309779196,1704114631980,-593.46742734,0.00020634,2]
[309779198,1704114631989,-166.08253714,0.00020634,2]
[309779200,1704114631998,-638.36204414,0.00020634,2]
[309779202,1704114632010,-2832.75966622,0.00020634,2]
[309779204,1704114632019,-3731.01777703,0.00020634,2]
[309779206,1704114632028,-2630.41248819,0.00020634,2]
[309779208,1704114632037,-154.84515485,0.00020635,2]
[309779210,1704114632046,-154.84515485,0.00020635,2]
[309779212,1704114632055,-641.65330945,0.00020635,2]
[309779214,1704114632064,-7928.30997934,0.00020635,2]
[309779216,1704114632073,-7849.52199751,0.00020635,2]
[309779218,1704114632082,-285.17267218,0.00020636,2]
[309779220,1704114632091,-1773.68924842,0.00020636,2]
[309779222,1704114632100,-916.23178014,0.00020636,2]
[309779224,1704114632109,-1018.88153191,0.00020636,2]
[309779225,1704114632118,-1677.73758043,0.00020636,2]
[309779227,1704114632126,-575.76,0.00020637,3]
[309779229,1704114632135,-585.77366444,0.00020644,2]
[309779231,1704114632144,-154.84515485,0.00020645,2]
[309779233,1704114632153,-1584.15548242,0.00020645,2]
[309779235,1704114632162,-590.16182725,0.00020645,2]
[309779237,1704114632171,-170.07739419,0.00020645,2]
[309779239,1704114632181,-14213.77123395,0.00020645,2]
[309779241,1704114632190,-245.44220656,0.00020646,2]
[309779243,1704114632199,-241.99633195,0.00020646,2]
[309779245,1704114632207,-707.58589183,0.00020646,2]
[309779247,1704114632216,-26366.26316002,0.00020646,2]
[309779249,1704114632226,-160.63706452,0.00020646,2]
[309779251,1704114632235,-264.3616191,0.00020647,2]
[309779253,1704114632244,-261.2068474,0.00020647,2]
[309779255,1704114632253,-1572.81659635,0.00020647,2]
[309779257,1704114632262,-873.27865021,0.00020647,2]
[309779259,1704114632271,-1733.29488981,0.00020647,2]
[309779261,1704114632280,-154.84515485,0.00020647,2]
[309779263,1704114632289,-154.84515485,0.00020647,2]
[309779265,1704114632298,-78208.01491016,0.00020647,2]
[309779266,1704114632308,-15178.7193092,0.00020648,2]
[309779268,1704114632317,-19622.64196242,0.00020648,2]
[309779270,1704114632327,-360.01037887,0.00020649,2]
[309779272,1704114632336,-156.48322816,0.00020649,2]
[309779274,1704114632345,-15849.01373132,0.00020649,2]
[309779276,1704114632355,-154.84515485,0.00020649,2]
[309779278,1704114632365,-636.01104477,0.00020649,2]
[309779280,1704114632375,-2803.25312316,0.00020649,2]
[309779282,1704114632386,-5942.09361641,0.0002065,2]
[309779284,1704114632396,-20821.7469816,0.00020656,2]
[309779286,1704114632405,-170.93770927,0.00020705,2]
[309779287,1704114632414,-1016.24068765,0.00020746,2]
[309779289,1704114632424,-155.67560046,0.00020815,2]
[309779291,1704114632434,-1420.16843057,0.00020815,2]
[309779293,1704114632443,-226.61241161,0.00020815,2]
[309779295,1704114632453,-154.84515485,0.00020815,5]
[309779297,1704114632462,-309.59752322,0.00020815,2]
[309779298,1704114632472,-174.42,0.00020815,2]
[309779300,1704114632482,-1710.8579427,0.00020815,2]
[309779302,1704114632492,-2094.98073876,0.00020815,2]
[309779304,1704114632502,-156.44033514,0.0002085,2]
[309779305,1704114632511,-3127.042783,0.00021,2]
[309779307,1704114632521,-231.37207138,0.00021,2]
[309779308,1704114632531,-500.0,0.00021917,4]
[309779309,1704114632540,-10000.0,0.00021918,2]
[309779310,1704114632550,-178.37917647,0.00025,2]
[309779312,1704114632559,-200.0,0.00028485,15]
[309779313,1704114632569,-209.95522,0.00029642,2]
[309779314,1704114632578,-151.0,0.00029667,2]
[309779315,1704114632587,-280.0,0.00031333,15]
[309779316,1704114632597,-300.0,0.00032876,7]
[309779317,1704114632608,-2674.06388022,0.00033,4]
[309779318,1704114632617,-75421.0,0.00033,2]
[309779319,1704114632627,-1000.0,0.00034,7]
[309779320,1704114632637,-391.0,0.00034466,15]
[309779322,1704114632647,-666.12182543,0.0003496,5]
[309779323,1704114632657,-1075.17528999,0.00035341,2]
[309779324,1704114632667,-224.1503712,0.00035616,120]
[309779325,1704114632676,-475.06460141,0.00035993,4]
[309779326,1704114632686,-622.4190157,0.00035996,4]
[309779327,1704114632696,-281.91464801,0.00037556,3]
[309779328,1704114632706,-408.84089293,0.00037556,2]
[309779329,1704114632715,-194.32962477,0.00037556,4]
[309779330,1704114632726,-601.89941524,0.00037556,5]
[309779331,1704114632735,-324.14691742,0.00037562,2]
[309779332,1704114632746,-602.3943612,0.00038356,2]
[309779333,1704114632755,-603.32317915,0.00038494,2]
[309779334,1704114632764,-383.0,0.00038685,2]
[309779335,1704114632773,-350.0,0.0003917,7]
[309779336,1704114632782,-350.0,0.0003918,7]
[309779337,1704114632791,-350.0,0.0003919,7]
[309779338,1704114632799,-50000.0,0.00039351,7]
[309779339,1704114632809,-350.0,0.0003967,7]
[309779340,1704114632818,-350.0,0.0003968,7]
[309779341,1704114632828,-350.0,0.0003968,7]
[309779342,1704114632838,-350.0,0.0003969,7]
[309779343,1704114632848,-350.0,0.0003969,7]
[309779344,1704114632858,-155.33062832,0.00039878,4]
[309779345,1704114632867,-36737.9819739,0.00039878,4]
[309779346,1704114632876,-166.18669559,0.00039879,4]
[309779347,1704114632885,-154.84515485,0.00039879,4]
[309779348,1704114632894,-5765.34922393,0.0003988,5]
[309779349,1704114632903,-350.06,0.0003988,7]
[309779350,1704114632912,-350.0,0.0003989,7]
[309779351,1704114632921,-3430.14500524,0.00039998,4]
[309779352,1704114632930,-1277.46612497,0.0004,4]
[309779353,1704114632939,-500.0,0.0004,30]
[309779354,1704114632948,-201.12776226,0.00040637,4]
[309779355,1704114632957,-500.0,0.00041,30]
[309779356,1704114632966,-250.0,0.00041095,10]
[309779357,1704114632976,-154.84515485,0.00041248,4]
[309779358,1704114632986,-229.93618803,0.00041248,4]
[309779359,1704114632995,-155.36394996,0.00041249,4]
[309779360,1704114633005,-2487.802129,0.0004125,5]
[309779361,1704114633016,-5000.0,0.00041744,15]
[309779362,1704114633026,-5018.22119836,0.00042,8]
[309779363,1704114633036,-452.8,0.00042,30]
[309779364,1704114633045,-433.0,0.00042247,4]
[309779365,1704114633054,-294.01768442,0.00042306,2]
[309779366,1704114633063,-550.0,0.00042465,3]
[309779367,1704114633073,-500.0,0.00042465,10]
[309779368,1704114633082,-500.0,0.000425,30]
[309779369,1704114633091,-180.93638733,0.00042639,14]
[309779370,1704114633101,-180.93638733,0.00042639,14]
[309779371,1704114633110,-180.93638733,0.00042639,14]
[309779372,1704114633119,-180.93,0.00042639,14]
[309779373,1704114633129,-152.36748407,0.00042639,14]
[309779374,1704114633138,-152.36748407,0.00042639,14]
[309779375,1704114633147,-152.36748407,0.00042639,14]
[309779376,1704114633156,-152.36748407,0.00042639,14]
[309779377,1704114633165,-152.36748407,0.00042639,14]
[309779378,1704114633174,-152.36748407,0.00042639,14]
[309779379,1704114633183,-152.36748407,0.00042639,14]
[309779380,1704114633192,-152.36748407,0.00042639,14]
[309779381,1704114633201,-152.36748407,0.00042639,14]
[309779383,1704114633210,-152.36748407,0.00042639,14]
[309779384,1704114633284,-152.36748407,0.00042639,14]
[309779385,1704114633294,-152.36748407,0.00042639,14]
[309779386,1704114633305,-152.36748407,0.00042639,14]
[309779387,1704114633314,-152.36748407,0.00042639,14]
[309779388,1704114633323,-152.36748407,0.00042639,14]
[309779389,1704114633332,-152.36748407,0.00042639,14]
[309779390,1704114633341,-152.36748407,0.00042639,14]
[309779391,1704114633350,-152.36748407,0.00042639,14]
[309779392,1704114633358,-152.36,0.00042639,14]
[309779393,1704114633372,-196.59,0.00042639,14]
[309779394,1704114633381,-678.49144181,0.00042692,4]
[309779395,1704114633390,-1452.38142427,0.00042724,2]
[309779396,1704114633401,-10468.19195387,0.00042731,4]
[309779397,1704114633411,-164.5181572,0.00042731,4]
[309779398,1704114633421,-1189.82199154,0.00042731,2]
[309779399,1704114633430,-4801.01300755,0.00042732,4]
[309779400,1704114633440,-7738.29980262,0.00042733,4]
[309779401,1704114633449,-274.05362151,0.00042733,4]
[309779402,1704114633459,-283.58645059,0.00042733,4]
[309779403,1704114633469,-4577.68890945,0.00042733,4]
[309779404,1704114633479,-182.37235519,0.00042733,4]
[309779405,1704114633488,-4966.77028285,0.00042734,4]
[309779406,1704114633498,-985.18585505,0.00042735,2]
[309779407,1704114633507,-2628.49644255,0.00042735,2]
[309779408,1704114633517,-309.64391646,0.00042735,4]
[309779410,1704114633526,-3508.52032258,0.00042735,4]
[309779411,1704114633535,-9890.87127788,0.00042735,2]
[309779412,1704114633544,-156.45322492,0.00042735,4]
[309779413,1704114633554,-154.84515485,0.00042735,4]
[309779414,1704114633564,-154.84515485,0.00042735,2]
[309779415,1704114633574,-1034.09281132,0.00042735,4]
[309779416,1704114633583,-2065.33470713,0.00042735,4]
[309779417,1704114633593,-443.91364576,0.00042736,3]
[309779418,1704114633602,-4698.69617845,0.00042736,4]
[309779419,1704114633611,-227.46078562,0.00042737,4]
[309779420,1704114633621,-574.4533679,0.00042737,4]
[309779421,1704114633631,-3496.78934044,0.00042737,2]
[309779422,1704114633640,-763.24303085,0.00042737,4]
[309779423,1704114633650,-311.32654228,0.00042737,4]
[309779424,1704114633659,-241.5642279,0.00042737,4]
[309779425,1704114633669,-566.8444163,0.00042737,4]
[309779426,1704114633678,-300.0,0.00042737,4]
[309779427,1704114633687,-888.0,0.00042737,2]
[309779428,1704114633696,-3677.29600285,0.00042737,4]
[309779429,1704114633707,-1817.40607726,0.00042737,2]
[309779430,1704114633716,-297.29621535,0.00042737,4]
[309779431,1704114633727,-309.4583435,0.00042738,2]
[309779432,1704114633738,-615.76608576,0.00042738,4]
[309779433,1704114633747,-200.0,0.00042738,30]
[309779434,1704114633756,-2.2767253,0.00042739,7]
[309779435,1704114633765,-504.24460533,0.00042739,7]
[309779436,1704114633774,-492.18273814,0.00042739,7]
[309779437,1704114633784,-500.0,0.00042739,7]
[309779438,1704114633793,-500.0,0.00042739,7]
[309779439,1704114633803,-500.0,0.00042739,7]
[309779440,1704114633812,-500.0,0.00042739,7]
[309779441,1704114633821,-500.0,0.00042739,7]
[309779442,1704114633831,-531.17283318,0.00042739,7]
[309779443,1704114633841,-504.20604036,0.00042739,7]
[309779444,1704114633850,-500.0,0.00042739,7]
[309779445,1704114633860,-606.58146453,0.00042739,7]
[309779446,1704114633869,-500.0,0.00042739,7]
[309779447,1704114633878,-500.0,0.00042739,7]
[309779448,1704114633887,-500.0,0.00042739,7]
[309779449,1704114633897,-500.0,0.00042739,7]
[309779450,1704114633906,-529.20219741,0.00042739,7]
[309779451,1704114633915,-256.32352712,0.00042739,7]
[309779452,1704114633924,-503.04245034,0.00042739,7]
[309779453,1704114633934,-502.38531823,0.00042739,7]
[309779454,1704114633943,-166.26818042,0.00042739,7]
[309779455,1704114633952,-503.27526717,0.00042739,7]
[309779456,1704114633961,-505.49409908,0.00042739,7]
[309779457,1704114633970,-517.87838037,0.00042739,7]
[309779458,1704114633980,-511.71694355,0.00042739,7]
[309779459,1704114633989,-500.0,0.00042739,7]
[309779460,1704114633998,-500.0,0.00042739,7]
[309779461,1704114634008,-500.0,0.00042739,7]
[309779462,1704114634017,-500.0,0.00042739,7]
[309779463,1704114634026,-500.0,0.00042739,7]
[309779464,1704114634036,-500.0,0.00042739,7]
[309779465,1704114634045,-500.0,0.00042739,7]
[309779466,1704114634055,-500.0,0.00042739,7]
[309779467,1704114634065,-500.0,0.00042739,7]
[309779468,1704114634075,-500.0,0.00042739,7]
[309779469,1704114634085,-213.12533845,0.00042739,7]
[309779470,1704114634095,-599.31,0.00042739,7]
[309779471,1704114634104,-500.0,0.00042739,7]
[309779472,1704114634112,-407.22179221,0.00042739,7]
[309779473,1704114634121,-500.0,0.00042739,7]
[309779474,1704114634130,-537.56282288,0.00042739,7]
[309779475,1704114634141,-500.0,0.00042739,7]
[309779476,1704114634151,-502.41661642,0.00042739,7]
[309779477,1704114634161,-500.0,0.00042739,7]
[309779478,1704114634170,-500.0,0.00042739,7]
[309779479,1704114634179,-500.0,0.00042739,7]
[309779480,1704114634189,-500.0,0.00042739,7]
[309779481,1704114634198,-500.0,0.00042739,7]
[309779482,1704114634207,-500.0,0.00042739,7]
[309779483,1704114634217,-500.0,0.00042739,7]